fUSD/lending_fUSD_20241026
["ID","MTS","AMOUNT","RATE_DAILY","PERIOD"]
[340864932,1729956657552,-3813.03670785,0.00064,90]
[340864933,1729956657562,-151.0,0.00064,120]
[340864934,1729956657571,-5239.58768209,0.00064,90]
[340864935,1729956657581,-290.646653,0.00064,120]
[340864936,1729956657590,-241.78717,0.00064,120]
[340864937,1729956657600,-241.78717,0.00064,120]
[340864938,1729956657609,-241.78717,0.00064,120]
[340864939,1729956657618,-241.78717,0.00064,120]
[340864940,1729956657628,-241.78717,0.00064,120]
[340864941,1729956657637,-241.78717,0.00064,120]
[340864942,1729956657646,-241.78717,0.00064,120]
[340864943,1729956657656,-241.78717,0.00064,120]
[340864944,1729956657665,-151.0,0.00064,120]
[340864945,1729956657675,-151.0,0.00064,120]
[340864946,1729956657684,-157.076706,0.00064,120]
[340864947,1729956657694,-157.076706,0.00064,120]
[340864948,1729956657704,-157.076706,0.00064,120]
[340864949,1729956657713,-157.076706,0.00064,120]
[340864950,1729956657723,-157.076706,0.00064,120]
[340864951,1729956657733,-157.076706,0.00064,120]
[340864952,1729956657742,-157.076706,0.00064,120]
[340864953,1729956657751,-265.798713,0.00064,120]
[340864954,1729956657761,-265.798713,0.00064,120]
[340864955,1729956657770,-157.076706,0.00064,120]
[340864956,1729956657779,-265.798713,0.00064,120]
[340864957,1729956657789,-265.798713,0.00064,120]
[340864958,1729956657798,-265.798713,0.00064,120]
[340864959,1729956657808,-265.798713,0.00064,120]
[340864960,1729956657818,-265.798713,0.00064,120]
[340864961,1729956657828,-265.798713,0.00064,120]
[340864962,1729956657837,-3200.131934,0.00064,120]
[340864963,1729956657847,-3200.131934,0.00064,120]
[340864964,1729956657857,-3200.131934,0.00064,120]
[340864965,1729956657866,-3200.131934,0.00064,120]
[340864966,1729956657876,-180.039292,0.00064,120]
[340864967,1729956657886,-180.039292,0.00064,120]
[340864968,1729956657896,-180.039292,0.00064,120]
[340864969,1729956657906,-180.039292,0.00064,120]
[340864970,1729956657915,-180.039292,0.00064,120]
[340864971,1729956657924,-180.039292,0.00064,120]
[340864972,1729956657934,-180.039292,0.00064,120]
[340864973,1729956657943,-180.039286,0.00064,120]
[340864974,1729956657953,-279.309106,0.00064,120]
[340864975,1729956657962,-279.309106,0.00064,120]
[340864976,1729956657971,-279.309106,0.00064,120]
[340864977,1729956657981,-279.309106,0.00064,120]
[340864978,1729956657990,-279.309106,0.00064,120]
[340864979,1729956658000,-279.309106,0.00064,120]
[340864980,1729956658009,-279.309106,0.00064,120]
[340864981,1729956658018,-279.309114,0.00064,120]
[340864982,1729956658028,-151.0,0.00064,120]
[340864983,1729956658037,-151.0,0.00064,120]
[340864984,1729956658047,-151.0,0.00064,120]
[340864985,1729956658056,-151.0,0.00064,120]
[340864986,1729956658067,-151.0,0.00064,120]
[340864987,1729956658075,-151.0,0.00064,120]
[340864988,1729956658085,-151.0,0.00064,120]
[340864989,1729956658094,-180.365342,0.00064,120]
[340864990,1729956658105,-262.518032,0.00064,120]
[340864991,1729956658114,-170.685455,0.00064,120]
[340864992,1729956658124,-429.304688,0.00064,120]
[340864993,1729956658134,-429.304688,0.00064,120]
[340864994,1729956658143,-429.304688,0.00064,120]
[340864995,1729956658153,-429.304692,0.00064,120]
[340864996,1729956658164,-500.0,0.00064009,120]
[340864997,1729956658176,-1155.47,0.00064027,120]
[340864998,1729956658185,-1155.47,0.00064027,120]
[340864999,1729956658194,-1155.47,0.00064027,120]
[340865000,1729956658204,-1155.47,0.00064027,120]
[340865001,1729956658214,-1155.47,0.00064027,120]
[340865002,1729956658223,-1155.47,0.00064027,120]
[340865003,1729956658233,-523.04340986,0.00064037,120]
[340865004,1729956658242,-162.64,0.00064079,120]
[340865005,1729956658252,-485.92,0.00064097,2]
[340865006,1729956658261,-4085.18888329,0.00064099,120]
[340865007,1729956658271,-666.0,0.00064109,120]
[340865008,1729956658280,-1396.76,0.00064109,120]
[340865009,1729956658290,-500.0,0.00064109,120]
[340865010,1729956658300,-500.0,0.00064109,120]
[340865011,1729956658309,-1112.16,0.00064109,120]
[340865012,1729956658319,-500.0,0.00064109,120]
[340865013,1729956658329,-307.39137464,0.00064109,120]
[340865014,1729956658338,-7772.31,0.00064109,120]
[340865015,1729956658348,-7772.31,0.00064109,120]
[340865016,1729956658359,-7772.31,0.00064109,120]
[340865017,1729956658368,-7772.31,0.00064109,120]
[340865018,1729956658378,-7772.31,0.00064109,120]
[340865019,1729956658388,-7772.31,0.00064109,120]
[340865020,1729956658397,-7772.31,0.00064109,120]
[340865021,1729956658407,-7772.31,0.00064109,120]
[340865022,1729956658417,-7772.31,0.00064109,120]
[340865023,1729956658426,-7772.31,0.00064109,120]
[340865024,1729956658436,-7772.31,0.00064109,120]
[340865025,1729956658445,-7772.31,0.00064109,120]
[340865026,1729956658455,-7772.31,0.00064109,120]
[340865027,1729956658465,-7772.31,0.00064109,120]
[340865028,1729956658474,-7772.31,0.00064109,120]
[340865029,1729956658484,-7772.31,0.00064109,120]
[340865030,1729956658494,-525.59,0.00064109,120]
[340865031,1729956658504,-500.0,0.00064155,120]
[340865032,1729956658514,-790.95,0.00064155,120]
[340865033,1729956658523,-1155.47,0.00064187,120]
[340865034,1729956658533,-500.0,0.00064187,120]
[340865035,1729956658543,-500.0,0.00064187,120]
[340865036,1729956658553,-1396.76,0.00064246,120]
[340865037,1729956658562,-150.0,0.00064283,120]
[340865038,1729956658572,-500.0,0.00064283,120]
[340865039,1729956658581,-500.0,0.00064283,120]
[340865040,1729956658591,-739.41,0.00064283,120]
[340865041,1729956658601,-1316.49,0.00064283,120]
[340865042,1729956658611,-7772.31,0.00064283,120]
[340865043,1729956658620,-500.0,0.00064283,120]
[340865044,1729956658630,-221.46849094,0.000643,120]
[340865045,1729956658639,-1396.76,0.00064383,120]
[340865046,1729956658649,-525.59,0.00064383,120]
[340865047,1729956658660,-998.82018,0.000645,120]
[340865048,1729956658747,-2952.32485562,0.000645,5]
[340865049,1729956658756,-1000000.0,0.000645,120]
[340865050,1729956658766,-151.0,0.000645,7]
[340865051,1729956658775,-151.0,0.000645,120]
[340865052,1729956658785,-151.0,0.000645,120]
[340865053,1729956658796,-203.851932,0.000645,7]
[340865054,1729956658806,-203.851926,0.000645,7]
[340865055,1729956658816,-151.0,0.000645,120]
[340865056,1729956658825,-151.0,0.000645,120]
[340865057,1729956658835,-151.0,0.000645,120]
[340865058,1729956658845,-182.331728,0.000645,120]
[340865059,1729956658855,-182.33172,0.000645,120]
[340865060,1729956658865,-151.0,0.000645,120]
[340865061,1729956658874,-151.0,0.000645,120]
[340865062,1729956658883,-151.0,0.000645,120]
[340865063,1729956658893,-241.78717,0.000645,120]
[340865064,1729956658904,-241.787168,0.000645,120]
[340865065,1729956658914,-157.076706,0.000645,120]
[340865066,1729956658923,-157.076706,0.000645,120]
[340865067,1729956658933,-265.798713,0.000645,120]
[340865068,1729956658942,-265.798715,0.000645,120]
[340865069,1729956658952,-3200.131934,0.000645,120]
[340865070,1729956658962,-3200.131926,0.000645,120]
[340865071,1729956658973,-1396.76,0.0006452,120]
[340865072,1729956658982,-7772.31,0.00064556,120]
[340865073,1729956658991,-499.69812296,0.00064556,120]
[340865074,1729956659001,-200.0,0.000646,120]
[340865075,1729956659010,-163.54,0.000646,66]
[340865076,1729956659019,-163.54,0.000646,66]
[340865077,1729956659028,-163.54,0.000646,66]
[340865078,1729956659038,-163.54,0.000646,66]
[340865079,1729956659048,-163.54,0.000646,66]
[340865080,1729956659058,-666.0,0.00064657,120]
[340865081,1729956659067,-1396.76,0.00064657,120]
[340865082,1729956659077,-500.0,0.00064657,120]
[340865083,1729956659087,-500.0,0.00064657,120]
[340865084,1729956659096,-1112.16,0.00064657,120]
[340865085,1729956659106,-500.0,0.00064657,120]
[340865086,1729956659115,-525.59,0.00064657,120]
[340865087,1729956659124,-150.0,0.000647,7]
[340865088,1729956659134,-500.0,0.00064703,120]
[340865089,1729956659144,-790.95,0.00064703,120]
[340865090,1729956659154,-1155.47,0.00064735,120]
[340865091,1729956659163,-236.10146438,0.00064735,120]
[340865092,1729956659174,-500.0,0.00064735,120]
[340865093,1729956659185,-1396.76,0.00064794,120]
[340865094,1729956659195,-200.09,0.000648,120]
[340865095,1729956659204,-1909.56,0.000648,60]
[340865096,1729956659213,-150.0,0.0006482,120]
[340865097,1729956659223,-266.36451623,0.0006483,120]
[340865098,1729956659234,-500.0,0.0006483,120]
[340865099,1729956659244,-500.0,0.0006483,120]
[340865100,1729956659256,-739.41,0.0006483,120]
[340865101,1729956659266,-1316.49,0.0006483,120]
[340865102,1729956659276,-7772.31,0.0006483,120]
[340865103,1729956659286,-10000.0,0.000649,120]
[340865104,1729956659295,-397.0,0.000649,50]
[340865105,1729956659305,-294.0,0.000649,50]
[340865106,1729956659314,-1067.0,0.000649,23]
[340865107,1729956659324,-1396.76,0.00064931,120]
[340865108,1729956659333,-525.59,0.00064931,120]
[340865109,1729956659342,-50000.0,0.00065,55]
[340865110,1729956659352,-50000.0,0.00065,65]
[340865111,1729956659361,-10000.0,0.00065,65]
[340865112,1729956659370,-1000000.0,0.00065,120]
[340865113,1729956659381,-1855.12194587,0.00065,2]
[340865114,1729956659390,-1000000.0,0.00065,120]
[340865115,1729956659400,-1979.0,0.00065,120]
[340865116,1729956659410,-2777.7285436,0.00065,120]
[340865117,1729956659419,-192.80824799,0.00065,120]
[340865118,1729956659428,-1000000.0,0.00065,120]
[340865119,1729956659438,-1000000.0,0.00065,120]
[340865120,1729956659447,-1053.26183697,0.00065,120]
[340865121,1729956659456,-540.09393537,0.00065,120]
[340865122,1729956659466,-1000000.0,0.00065,120]
[340865123,1729956659475,-4664.57,0.00065,4]
[340865124,1729956659484,-317866.65,0.00065,120]
[340865125,1729956659494,-150000.0,0.00065,120]
[340865126,1729956659503,-469.93788058,0.00065,120]
[340865127,1729956659512,-10205.3,0.00065,120]
[340865128,1729956659521,-170.977616,0.00065,7]
[340865129,1729956659530,-151.0,0.00065,120]
[340865130,1729956659539,-237.596752,0.00065,120]
[340865131,1729956659548,-1827.93,0.00065,60]
[340865132,1729956659558,-1000000.0,0.00065,120]
[340865133,1729956659567,-885034.0,0.00065,120]
[340865134,1729956659576,-10000.0,0.00065,120]
[340865135,1729956659586,-12946.0,0.00065,120]
[340865136,1729956659596,-13312.0,0.00065,120]
[340865137,1729956659605,-5518.0,0.00065,120]
[340865138,1729956659614,-3812.0,0.00065,120]
[340865139,1729956659623,-42066.50773132,0.00065,120]
[340865140,1729956659632,-5238.0,0.00065,120]
[340865141,1729956659641,-318.56169686,0.00065004,120]
[340865142,1729956659651,-1396.76,0.00065068,120]
[340865143,1729956659661,-4085.18788329,0.00065099,120]
[340865144,1729956659670,-938.0,0.000651,120]
[340865145,1729956659680,-938.0,0.000651,120]
[340865146,1729956659690,-7772.31,0.00065104,120]
[340865147,1729956659699,-173.18,0.00065196,2]
[340865148,1729956659708,-666.0,0.00065205,120]
[340865149,1729956659718,-1396.76,0.00065205,120]
[340865150,1729956659727,-500.0,0.00065205,120]
[340865151,1729956659737,-500.0,0.00065205,120]
[340865152,1729956659746,-1112.16,0.00065205,120]
[340865153,1729956659755,-500.0,0.00065205,120]
[340865154,1729956659764,-525.59,0.00065205,120]
[340865155,1729956659774,-222.89,0.00065205,60]
[340865156,1729956659784,-150.0,0.00065205,60]
[340865157,1729956659793,-150.0,0.00065205,60]
[340865158,1729956659803,-150.0,0.00065205,60]
[340865159,1729956659812,-500.0,0.00065251,120]
[340865160,1729956659821,-790.95,0.00065251,120]
[340865161,1729956659830,-1155.47,0.00065283,120]
[340865162,1729956659840,-500.0,0.00065283,120]
[340865163,1729956659849,-1396.76,0.00065342,120]
[340865164,1729956659859,-500.0,0.00065378,120]
[340865165,1729956659868,-373.32535103,0.00065378,120]
[340865166,1729956659878,-739.41,0.00065378,120]
[340865167,1729956659888,-1316.49,0.00065378,120]
[340865168,1729956659897,-7772.31,0.00065378,120]
[340865169,1729956659908,-1396.76,0.00065479,120]
[340865170,1729956659917,-525.59,0.00065479,120]
[340865171,1729956659926,-508.09,0.00065499,120]
[340865172,1729956659935,-508.09,0.00065499,120]
[340865173,1729956659944,-508.09,0.00065499,120]
[340865174,1729956659953,-508.09,0.00065499,120]
[340865175,1729956659963,-1000000.0,0.000655,120]
[340865176,1729956659972,-24022.01341472,0.000655,30]
[340865177,1729956659981,-1396.76,0.00065616,120]
[340865178,1729956659990,-7772.31,0.00065652,120]
[340865179,1729956659999,-666.0,0.00065753,120]
[340865180,1729956660009,-600.0,0.00065753,120]
[340865181,1729956660019,-600.0,0.00065753,120]
[340865182,1729956660028,-600.0,0.00065753,120]
[340865183,1729956660037,-600.0,0.00065753,120]
[340865184,1729956660046,-600.0,0.00065753,120]
[340865185,1729956660056,-668.29935974,0.00065753,120]
[340865186,1729956660066,-1396.76,0.00065753,120]
[340865187,1729956660076,-500.0,0.00065753,120]
[340865188,1729956660085,-500.0,0.00065753,120]
[340865189,1729956660095,-1112.16,0.00065753,120]
[340865190,1729956660104,-449.53662594,0.00065753,120]
[340865191,1729956660113,-525.59,0.00065753,120]
[340865192,1729956660122,-500.0,0.00065799,120]
[340865193,1729956660131,-790.95,0.00065799,120]
[340865194,1729956660140,-1155.47,0.00065831,120]
[340865195,1729956660149,-500.0,0.00065831,120]
[340865196,1729956660159,-1396.76,0.0006589,120]
[340865197,1729956660168,-322.620026,0.000659,30]
[340865198,1729956660181,-500.0,0.00065926,120]
[340865199,1729956660192,-739.41,0.00065926,120]
[340865200,1729956660201,-1316.49,0.00065926,120]
[340865201,1729956660210,-7772.31,0.00065926,120]
[340865202,1729956660222,-5005.02891,0.00065952,30]
[340865203,1729956660233,-54893.88921094,0.00065997,120]
[340865204,1729956660245,-1666.15,0.00065997,120]
[340865205,1729956660256,-508.09,0.00065999,120]
[340865206,1729956660268,-508.09,0.00065999,120]
[340865207,1729956660277,-508.09,0.00065999,120]
[340865208,1729956660286,-508.09,0.00065999,120]
[340865209,1729956660295,-508.09,0.00065999,120]
[340865210,1729956660305,-508.09,0.00065999,120]
[340865211,1729956660314,-508.2120988,0.00065999,120]
[340865212,1729956660323,-50000.0,0.00066,56]
[340865213,1729956660333,-50000.0,0.00066,66]
[340865214,1729956660342,-10000.0,0.00066,66]
[340865215,1729956660351,-1000000.0,0.00066,120]
[340865216,1729956660361,-1181.23494385,0.00066,120]
[340865217,1729956660370,-150.0,0.00066,120]
[340865218,1729956660379,-500000.0,0.00066,120]
[340865219,1729956660388,-324.40082523,0.00066,120]
[340865220,1729956660398,-226.36228109,0.00066,30]
[340865221,1729956660408,-10000.0,0.00066,120]
[340865222,1729956660417,-9323.01142833,0.00066,120]
[340865223,1729956660427,-1396.76,0.00066027,120]
[340865224,1729956660436,-525.70902023,0.00066027,120]
[340865225,1729956660446,-1396.83637747,0.00066164,120]
[340865226,1729956660456,-7772.38407197,0.000662,120]
[340865227,1729956660465,-152.0,0.00066246,7]
[340865228,1729956660474,-102297.00017942,0.000663,120]
[340865229,1729956660483,-666.0,0.00066301,120]
[340865230,1729956660493,-500.0,0.00066301,120]
[340865231,1729956660579,-500.0,0.00066301,120]
[340865232,1729956660588,-1112.16,0.00066301,120]
[340865233,1729956660598,-500.0,0.00066347,120]
[340865234,1729956660608,-790.95,0.00066347,120]
[340865235,1729956660617,-485.92,0.00066361,2]
[340865236,1729956660627,-1155.47,0.00066379,120]
[340865237,1729956660636,-500.0,0.00066379,120]
[340865238,1729956660645,-1678845.0,0.0006644,30]
[340865239,1729956660654,-500.0,0.00066474,120]
[340865240,1729956660669,-739.41,0.00066474,120]
[340865241,1729956660680,-1316.49,0.00066474,120]
[340865242,1729956660690,-1000000.0,0.000665,120]
[340865243,1729956660699,-756.83,0.00066575,60]
[340865244,1729956660708,-185.55243501,0.000666,120]
[340865245,1729956660718,-150.26265148,0.00066732,120]
[340865246,1729956660727,-338.0,0.000668,120]
[340865247,1729956660736,-1909.56,0.000668,60]
[340865248,1729956660745,-666.0,0.00066849,120]
[340865249,1729956660755,-500.0,0.00066849,120]
[340865250,1729956660764,-500.0,0.00066849,120]
[340865251,1729956660773,-1112.16,0.00066849,120]
[340865252,1729956660782,-1000.13404346,0.0006688,120]
[340865253,1729956660792,-500.0,0.00066895,120]
[340865254,1729956660802,-790.95,0.00066895,120]
[340865255,1729956660811,-2040027.0,0.000669,120]
[340865256,1729956660820,-1155.47,0.00066927,120]
[340865257,1729956660829,-500.0,0.00066927,120]
[340865258,1729956660838,-50000.0,0.00067,57]
[340865259,1729956660848,-50000.0,0.00067,67]
[340865260,1729956660857,-10000.0,0.00067,67]
[340865261,1729956660866,-1000000.0,0.00067,120]
[340865262,1729956660875,-20000.0,0.00067,120]
[340865263,1729956660885,-20000.0,0.00067,120]
[340865264,1729956660894,-20000.0,0.00067,120]
[340865265,1729956660904,-20000.0,0.00067,120]
[340865266,1729956660915,-20000.0,0.00067,120]
[340865267,1729956660924,-20000.0,0.00067,120]
[340865268,1729956660933,-20000.0,0.00067,120]
[340865269,1729956660942,-14312.719999,0.00067,120]
[340865270,1729956660952,-21020.07470594,0.00067,120]
[340865271,1729956660962,-500.0,0.00067022,120]
[340865272,1729956660972,-739.41,0.00067022,120]
[340865273,1729956660981,-1316.49,0.00067022,120]
[340865274,1729956660992,-500.0,0.00067396,120]
[340865275,1729956661003,-500.0,0.00067396,120]
[340865276,1729956661014,-1112.16,0.00067396,120]
[340865277,1729956661026,-467.82248315,0.00067397,120]
[340865278,1729956661036,-1827.93,0.000674,60]
[340865279,1729956661046,-10000.0,0.0006744,30]
[340865280,1729956661056,-500.0,0.00067443,120]
[340865281,1729956661065,-790.95,0.00067443,120]
[340865282,1729956661075,-1155.47,0.00067475,120]
[340865283,1729956661084,-251.68763813,0.00067475,120]
[340865284,1729956661094,-2000.0,0.000675,120]
[340865285,1729956661103,-1000000.0,0.000675,120]
[340865286,1729956661112,-298.45244991,0.000675,120]
[340865287,1729956661121,-1689.69718581,0.00067534,120]
[340865288,1729956661130,-500.0,0.0006757,120]
[340865289,1729956661140,-739.41,0.0006757,120]
[340865290,1729956661150,-1316.49,0.0006757,120]
[340865291,1729956661160,-295.97127416,0.00067594,120]
[340865292,1729956661170,-200.0,0.000676,120]
[340865293,1729956661184,-627.6601471,0.00067604,120]
[340865294,1729956661194,-2114.00683167,0.00067616,120]
[340865295,1729956661203,-2114.00683167,0.00067617,120]
[340865296,1729956661212,-870.97661286,0.00067623,120]
[340865297,1729956661222,-200.0,0.00067627,120]
[340865298,1729956661232,-200.0,0.0006763,120]
[340865299,1729956661242,-200.0,0.00067639,120]
[340865300,1729956661252,-200.0,0.00067639,120]
[340865301,1729956661262,-870.97661286,0.00067641,120]
[340865302,1729956661272,-200.0,0.00067647,120]
[340865303,1729956661282,-2114.00683167,0.00067656,120]
[340865304,1729956661291,-200.0,0.00067666,120]
[340865305,1729956661301,-200.0,0.00067666,120]
[340865306,1729956661310,-200.0,0.00067667,120]
[340865307,1729956661319,-295.97127416,0.00067669,120]
[340865308,1729956661329,-200.0,0.00067669,120]
[340865309,1729956661338,-870.97661286,0.0006767,120]
[340865310,1729956661348,-398.48982794,0.00067672,120]
[340865311,1729956661358,-200.0,0.0006768,120]
[340865312,1729956661368,-2114.00683167,0.00067681,120]
[340865313,1729956661377,-200.0,0.00067693,120]
[340865314,1729956661386,-200.0,0.00067695,120]
[340865315,1729956661395,-909.07996408,0.00067709,120]
[340865316,1729956661405,-909.07996408,0.0006771,120]
[340865317,1729956661417,-909.07996408,0.00067718,120]
[340865318,1729956661426,-200.0,0.00067722,120]
[340865319,1729956661435,-200.0,0.00067725,120]
[340865320,1729956661444,-295.97127416,0.00067725,120]
[340865321,1729956661454,-200.0,0.00067728,120]
[340865322,1729956661463,-870.97661286,0.00067728,120]
[340865323,1729956661473,-200.0,0.00067734,120]
[340865324,1729956661482,-200.0,0.00067736,120]
[340865325,1729956661491,-200.0,0.00067746,120]
[340865326,1729956661500,-627.6601471,0.00067746,120]
[340865327,1729956661509,-200.0,0.00067751,120]
[340865328,1729956661519,-200.0,0.00067761,120]
[340865329,1729956661529,-200.0,0.00067766,120]
[340865330,1729956661538,-200.0,0.00067772,120]
[340865331,1729956661547,-200.0,0.00067777,120]
[340865332,1729956661556,-200.0,0.00067782,120]
[340865333,1729956661567,-200.0,0.00067783,120]
[340865334,1729956661577,-200.0,0.00067784,120]
[340865335,1729956661586,-870.97661286,0.00067795,120]
[340865336,1729956661595,-4867.41803273,0.000678,120]
[340865337,1729956661605,-999.97196182,0.000678,120]
[340865338,1729956661614,-150.0,0.000678,120]
[340865339,1729956661624,-200.0,0.00067801,120]
[340865340,1729956661633,-200.0,0.00067806,120]
[340865341,1729956661643,-200.0,0.00067809,120]
[340865342,1729956661652,-200.0,0.0006781,120]
[340865343,1729956661666,-200.0,0.00067812,120]
[340865344,1729956661676,-200.0,0.00067812,120]
[340865345,1729956661687,-627.6601471,0.00067813,120]
[340865346,1729956661696,-200.0,0.00067822,120]
[340865347,1729956661705,-2114.00683167,0.00067823,120]
[340865348,1729956661714,-200.0,0.00067827,120]
[340865349,1729956661723,-200.0,0.00067834,120]
[340865350,1729956661732,-870.97661286,0.00067857,120]
[340865351,1729956661742,-398.48982794,0.00067871,120]
[340865352,1729956661751,-295.97127416,0.00067872,120]
[340865353,1729956661761,-200.0,0.00067875,120]
[340865354,1729956661772,-398.48982794,0.00067877,120]
[340865355,1729956661781,-200.0,0.00067887,120]
[340865356,1729956661790,-200.0,0.0006789,120]
[340865357,1729956661799,-14865.35648079,0.0006789,120]
[340865358,1729956661808,-627.6601471,0.0006789,120]
[340865359,1729956661818,-398.48982794,0.0006789,120]
[340865360,1729956661828,-393.04605932,0.00067892,120]
[340865361,1729956661840,-200.0,0.00067895,120]
[340865362,1729956661849,-200.0,0.00067897,120]
[340865363,1729956661858,-250.0,0.000679,30]
[340865364,1729956661867,-200.0,0.00067905,120]
[340865365,1729956661876,-2114.00683167,0.00067905,120]
[340865366,1729956661885,-909.07996408,0.00067907,120]
[340865367,1729956661894,-627.6601471,0.00067907,120]
[340865368,1729956661903,-200.0,0.00067913,120]
[340865369,1729956661913,-398.48982794,0.00067917,120]
[340865370,1729956661922,-200.0,0.00067918,120]
[340865371,1729956661931,-200.0,0.00067922,120]
[340865372,1729956661940,-398.48982794,0.00067925,120]
[340865373,1729956661950,-295.97127416,0.00067926,120]
[340865374,1729956661959,-348.12165664,0.00067944,120]
[340865375,1729956661968,-500.0,0.00067944,120]
[340865376,1729956661978,-1112.16,0.00067944,120]
[340865377,1729956661987,-295.97127416,0.00067947,120]
[340865378,1729956661996,-909.07996408,0.00067949,120]
[340865379,1729956662006,-909.07996408,0.00067952,120]
[340865380,1729956662015,-200.0,0.00067956,120]
[340865381,1729956662026,-200.0,0.00067972,120]
[340865382,1729956662036,-627.6601471,0.00067976,120]
[340865383,1729956662047,-7813.67347994,0.0006798,45]
[340865384,1729956662056,-200.0,0.00067989,120]
[340865385,1729956662065,-256.75008006,0.00067991,120]
[340865386,1729956662075,-790.95,0.00067991,120]
[340865387,1729956662085,-310.02082925,0.00067999,60]
[340865388,1729956662095,-50000.0,0.00068,48]
[340865389,1729956662104,-50000.0,0.00068,68]
[340865390,1729956662113,-10000.0,0.00068,68]
[340865391,1729956662122,-24022.01341472,0.00068,30]
[340865392,1729956662131,-1000.0,0.00068,120]
[340865393,1729956662140,-1000000.0,0.00068,120]
[340865394,1729956662149,-160.0,0.00068,120]
[340865395,1729956662159,-1000000.0,0.00068,120]
[340865396,1729956662169,-500000.0,0.00068,120]
[340865397,1729956662183,-1492.86222556,0.00068,90]
[340865398,1729956662263,-1190.725,0.00068,120]
[340865399,1729956662273,-757.0,0.00068,7]
[340865400,1729956662283,-1782.95876382,0.00068,120]
[340865401,1729956662292,-421.81500454,0.00068,120]
[340865402,1729956662301,-193051.16990956,0.00068,120]
[340865403,1729956662311,-200.0,0.00068,120]
[340865404,1729956662320,-4343.91014593,0.00068,120]
[340865405,1729956662330,-1155.47,0.00068023,120]
[340865406,1729956662339,-150.0,0.00068038,120]
[340865407,1729956662348,-183.61213446,0.00068118,120]
[340865408,1729956662358,-739.41,0.00068118,120]
[340865409,1729956662367,-1316.49,0.00068118,120]
[340865410,1729956662376,-150.0,0.00068137,120]
[340865411,1729956662385,-150.0,0.00068138,120]
[340865412,1729956662395,-150.0,0.00068148,120]
[340865413,1729956662403,-2208.48,0.0006818,120]
[340865414,1729956662414,-150.0,0.000683,120]
[340865415,1729956662424,-310.48,0.00068358,120]
[340865416,1729956662433,-500.0,0.00068492,120]
[340865417,1729956662443,-1112.16,0.00068492,120]
[340865418,1729956662452,-1000000.0,0.000685,120]
[340865419,1729956662462,-790.95,0.00068539,120]
[340865420,1729956662471,-1155.47,0.0006857,120]
[340865421,1729956662480,-3286.31,0.00068578,120]
[340865422,1729956662489,-485.92,0.00068625,2]
[340865423,1729956662499,-150.0,0.00068661,120]
[340865424,1729956662508,-739.41,0.00068666,120]
[340865425,1729956662518,-1316.49,0.00068666,120]
[340865426,1729956662527,-160.0,0.000687,15]
[340865427,1729956662536,-1000.0,0.00068889,120]
[340865428,1729956662547,-110900.37537664,0.000689,120]
[340865429,1729956662556,-150.0,0.00068909,120]
[340865430,1729956662567,-150.0,0.00068955,120]
[340865431,1729956662577,-20053.66793916,0.00068999,120]